[Event "Titled Tuesday Blitz August 17 2021"]
[White "Yilmaz, Mustafa"]
[Black "Urazayev, Arystanbek"]
[WhiteFideId "6302718"]
[BlackFideId "13709810"]
[WhiteElo "2518"]
[BlackElo "2321"]
[Result "0-1"]
[Round "08"]
[TimeControl "180+1"]
[Date "2021.08.17"]
[WhiteClock "0:00:02"]
[BlackClock "0:00:14"]

1. d4 {[%clk 0:03:00]}  d5 {[%clk 0:02:59]} 2. c4 {[%clk 0:03:00]}  e6 {[%clk 0:03:00]} 3. Nc3 {[%clk 0:03:00]}  Nf6 {[%clk 0:03:01]} 4. Nf3 {[%clk 0:03:00]}  a6 {[%clk 0:02:59]} 5. cxd5 {[%clk 0:02:56]}  exd5 {[%clk 0:03:00]} 6. Bg5 {[%clk 0:02:56]}  Be6 {[%clk 0:03:00]} 7. e3 {[%clk 0:02:56]}  Nbd7 {[%clk 0:03:00]} 8. Bd3 {[%clk 0:02:56]}  c6 {[%clk 0:03:01]} 9. O-O {[%clk 0:02:52]}  Bd6 {[%clk 0:03:01]} 10. Bf4 {[%clk 0:02:52]}  Qb8 {[%clk 0:03:01]} 11. Qd2 {[%clk 0:02:52]}  O-O {[%clk 0:03:01]} 12. h3 {[%clk 0:02:50]}  Re8 {[%clk 0:03:01]} 13. Rab1 {[%clk 0:02:48]}  g6 {[%clk 0:02:57]} 14. Rfe1 {[%clk 0:02:40]}  Nh5 {[%clk 0:02:57]} 15. Bxd6 {[%clk 0:02:38]}  Qxd6 {[%clk 0:02:58]} 16. Ng5 {[%clk 0:02:36]}  Ng7 {[%clk 0:02:55]} 17. Nxe6 {[%clk 0:02:08]}  Rxe6 {[%clk 0:02:55]} 18. Ne2 {[%clk 0:02:05]}  Ree8 {[%clk 0:02:52]} 19. a4 {[%clk 0:02:05]}  a5 {[%clk 0:02:51]} 20. b4 {[%clk 0:02:05]}  axb4 {[%clk 0:02:26]} 21. Rxb4 {[%clk 0:02:02]}  Ra7 {[%clk 0:02:22]} 22. Reb1 {[%clk 0:02:01]}  b6 {[%clk 0:02:19]} 23. Nc3 {[%clk 0:01:56]}  Rea8 {[%clk 0:02:14]} 24. e4 {[%clk 0:01:54]}  dxe4 {[%clk 0:02:11]} 25. Nxe4 {[%clk 0:01:51]}  Qe7 {[%clk 0:02:11]} 26. Re1 {[%clk 0:01:37]}  Ne6 {[%clk 0:02:02]} 27. Bc4 {[%clk 0:01:33]}  Rxa4 {[%clk 0:01:45]} 28. Rxa4 {[%clk 0:01:29]}  Rxa4 {[%clk 0:01:45]} 29. Bxe6 {[%clk 0:01:24]}  fxe6 {[%clk 0:01:39]} 30. Ng5 {[%clk 0:01:18]}  Nf8 {[%clk 0:01:39]} 31. Nf3 {[%clk 0:01:15]}  Qd6 {[%clk 0:01:34]} 32. Qc2 {[%clk 0:01:07]}  b5 {[%clk 0:01:32]} 33. h4 {[%clk 0:01:01]}  Rc4 {[%clk 0:01:27]} 34. Qb1 {[%clk 0:00:56]}  b4 {[%clk 0:01:24]} 35. h5 {[%clk 0:00:50]}  Rc3 {[%clk 0:01:22]} 36. hxg6 {[%clk 0:00:27]}  hxg6 {[%clk 0:01:22]} 37. Ng5 {[%clk 0:00:28]}  Qxd4 {[%clk 0:00:48]} 38. Nxe6 {[%clk 0:00:28]}  Qd3 {[%clk 0:00:20]} 39. Qxb4 {[%clk 0:00:27]}  Nxe6 {[%clk 0:00:20]} 40. Rxe6 {[%clk 0:00:28]}  Qd1+ {[%clk 0:00:21]} 41. Kh2 {[%clk 0:00:24]}  Qh5+ {[%clk 0:00:21]} 42. Kg1 {[%clk 0:00:24]}  Rc1+ {[%clk 0:00:21]} 43. Re1 {[%clk 0:00:24]}  Rxe1+ {[%clk 0:00:16]} 44. Qxe1 {[%clk 0:00:25]}  Qd5 {[%clk 0:00:16]} 45. Qe8+ {[%clk 0:00:21]}  Kg7 {[%clk 0:00:16]} 46. Qe7+ {[%clk 0:00:21]}  Kh6 {[%clk 0:00:15]} 47. Qf8+ {[%clk 0:00:18]}  Kh7 {[%clk 0:00:15]} 48. Qe7+ {[%clk 0:00:18]}  Kg8 {[%clk 0:00:16]} 49. Qf6 {[%clk 0:00:15]}  Kh7 {[%clk 0:00:15]} 50. Qe7+ {[%clk 0:00:07]}  Kg8 {[%clk 0:00:15]} 51. Qe8+ {[%clk 0:00:06]}  Kg7 {[%clk 0:00:15]} 52. Qe7+ {[%clk 0:00:06]}  Qf7 {[%clk 0:00:15]} 53. Qe5+ {[%clk 0:00:06]}  Qf6 {[%clk 0:00:15]} 54. Qc7+ {[%clk 0:00:05]}  Kh6 {[%clk 0:00:15]} 55. Qc8 {[%clk 0:00:01]}  Qa1+ {[%clk 0:00:11]} 56. Kh2 {[%clk 0:00:01]}  Qe5+ {[%clk 0:00:12]} 57. g3 {[%clk 0:00:02]}  Qf6 {[%clk 0:00:12]} 58. f4 {[%clk 0:00:01]}  g5 {[%clk 0:00:12]} 59. Qg8 {[%clk 0:00:01]}  gxf4 {[%clk 0:00:12]} 60. gxf4 {[%clk 0:00:02]}  Qxf4+ {[%clk 0:00:12]} 61. Kg2 {[%clk 0:00:02]}  Qe4+ {[%clk 0:00:11]} 62. Kf2 {[%clk 0:00:02]}  Qd4+ {[%clk 0:00:09]} 63. Ke2 {[%clk 0:00:03]}  c5 {[%clk 0:00:09]} 64. Qf8+ {[%clk 0:00:02]}  Kg5 {[%clk 0:00:10]} 65. Qg8+ {[%clk 0:00:02]}  Kf5 {[%clk 0:00:10]} 66. Qf8+ {[%clk 0:00:02]}  Ke4 {[%clk 0:00:11]} 67. Qe8+ {[%clk 0:00:02]}  Kd5 {[%clk 0:00:11]} 68. Qf7+ {[%clk 0:00:03]}  Kc6 {[%clk 0:00:11]} 69. Qe8+ {[%clk 0:00:03]}  Kb6 {[%clk 0:00:12]} 70. Qb8+ {[%clk 0:00:03]}  Ka5 {[%clk 0:00:12]} 71. Qa7+ {[%clk 0:00:03]}  Kb4 {[%clk 0:00:13]} 72. Qb8+ {[%clk 0:00:03]}  Kc3 {[%clk 0:00:13]} 73. Qb7 {[%clk 0:00:02]}  Qd3+ {[%clk 0:00:13]} 74. Ke1 {[%clk 0:00:02]}  Qd2+ {[%clk 0:00:13]} 75. Kf1 {[%clk 0:00:03]}  c4 {[%clk 0:00:14]} 76. Qb5 {[%clk 0:00:03]}  Qd3+ {[%clk 0:00:14]} 77. Ke1 {[%clk 0:00:03]}  Qe3+ {[%clk 0:00:14]} 78. Kf1 {[%clk 0:00:04]}  Kd3 {[%clk 0:00:13]} 79. Qd5+ {[%clk 0:00:04]}  Qd4 {[%clk 0:00:14]} 80. Qf5+ {[%clk 0:00:04]}  Kc3 {[%clk 0:00:14]} 81. Qa5+ {[%clk 0:00:04]}  Kd3 {[%clk 0:00:13]} 82. Qf5+ {[%clk 0:00:03]}  Kd2 {[%clk 0:00:14]} 83. Qa5+ {[%clk 0:00:02]}  c3 {[%clk 0:00:14]} 0-1


[Site "https://www.chess.com"]

[Event "Titled Tuesday Blitz August 17 2021"]
[White "Zakaryan_David"]
[Black "Seo, Jung Min"]
[BlackFideId "1734687"]
[WhiteElo "2578"]
[BlackElo "2486"]
[Result "1/2-1/2"]
[Round "08"]
[TimeControl "180+1"]
[Date "2021.08.17"]
[WhiteClock "0:00:24"]
[BlackClock "0:00:01"]

1. e4 {[%clk 0:02:48]}  g6 {[%clk 0:02:59]} 2. d4 {[%clk 0:02:48]}  Bg7 {[%clk 0:03:00]} 3. c4 {[%clk 0:02:49]}  d6 {[%clk 0:03:00]} 4. Nc3 {[%clk 0:02:48]}  Nc6 {[%clk 0:02:59]} 5. d5 {[%clk 0:02:48]}  Nd4 {[%clk 0:02:59]} 6. Be3 {[%clk 0:02:49]}  e5 {[%clk 0:02:59]} 7. Nge2 {[%clk 0:02:49]}  Nxe2 {[%clk 0:02:58]} 8. Bxe2 {[%clk 0:02:50]}  f5 {[%clk 0:02:57]} 9. exf5 {[%clk 0:02:50]}  gxf5 {[%clk 0:02:52]} 10. Bh5+ {[%clk 0:02:48]}  Kf8 {[%clk 0:02:52]} 11. f4 {[%clk 0:02:48]}  e4 {[%clk 0:02:48]} 12. Qc2 {[%clk 0:02:46]}  Nf6 {[%clk 0:02:47]} 13. Be2 {[%clk 0:02:47]}  c5 {[%clk 0:02:40]} 14. dxc6 {[%clk 0:02:44]}  bxc6 {[%clk 0:02:40]} 15. O-O-O {[%clk 0:02:44]}  Be6 {[%clk 0:02:35]} 16. g4 {[%clk 0:02:41]}  fxg4 {[%clk 0:02:22]} 17. f5 {[%clk 0:02:40]}  Bxf5 {[%clk 0:02:05]} 18. Rhf1 {[%clk 0:02:38]}  Qd7 {[%clk 0:02:03]} 19. Bc5 {[%clk 0:02:27]}  Ke8 {[%clk 0:01:40]} 20. Rxd6 {[%clk 0:02:18]}  Qc8 {[%clk 0:01:40]} 21. Qa4 {[%clk 0:02:11]}  Kf7 {[%clk 0:01:29]} 22. Rxc6 {[%clk 0:02:07]}  Qd7 {[%clk 0:01:29]} 23. Nd5 {[%clk 0:01:55]}  Nxd5 {[%clk 0:00:57]} 24. cxd5 {[%clk 0:01:54]}  Kg8 {[%clk 0:00:49]} 25. Bc4 {[%clk 0:01:50]}  h5 {[%clk 0:00:46]} 26. Qa5 {[%clk 0:01:28]}  Rc8 {[%clk 0:00:28]} 27. Rxc8+ {[%clk 0:00:45]}  Qxc8 {[%clk 0:00:28]} 28. d6+ {[%clk 0:00:45]}  Kh7 {[%clk 0:00:28]} 29. Qc7 {[%clk 0:00:42]}  Qxc7 {[%clk 0:00:17]} 30. dxc7 {[%clk 0:00:43]}  Kg6 {[%clk 0:00:15]} 31. Rxf5 {[%clk 0:00:40]}  Kxf5 {[%clk 0:00:16]} 32. Ba6 {[%clk 0:00:40]}  Be5 {[%clk 0:00:16]} 33. c8=Q+ {[%clk 0:00:40]}  Rxc8 {[%clk 0:00:15]} 34. Bxc8+ {[%clk 0:00:41]}  Kf4 {[%clk 0:00:13]} 35. Bxa7 {[%clk 0:00:16]}  Kf3 {[%clk 0:00:13]} 36. b4 {[%clk 0:00:16]}  Bxh2 {[%clk 0:00:13]} 37. b5 {[%clk 0:00:17]}  e3 {[%clk 0:00:07]} 38. Bxe3 {[%clk 0:00:14]}  Kxe3 {[%clk 0:00:07]} 39. Kd1 {[%clk 0:00:12]}  Bc7 {[%clk 0:00:05]} 40. Ke1 {[%clk 0:00:11]}  Kf3 {[%clk 0:00:06]} 41. Kf1 {[%clk 0:00:12]}  Bb6 {[%clk 0:00:05]} 42. Bb7+ {[%clk 0:00:12]}  Kf4 {[%clk 0:00:04]} 43. a4 {[%clk 0:00:11]}  h4 {[%clk 0:00:04]} 44. Bc8 {[%clk 0:00:09]}  h3 {[%clk 0:00:04]} 45. Bb7 {[%clk 0:00:08]}  g3 {[%clk 0:00:03]} 46. Bc6 {[%clk 0:00:08]}  Ke3 {[%clk 0:00:03]} 47. Bb7 {[%clk 0:00:09]}  Kd4 {[%clk 0:00:02]} 48. Bc6 {[%clk 0:00:09]}  Kc5 {[%clk 0:00:03]} 49. Bb7 {[%clk 0:00:10]}  Kb4 {[%clk 0:00:03]} 50. Bc6 {[%clk 0:00:10]}  Kxa4 {[%clk 0:00:03]} 51. Ba8 {[%clk 0:00:11]}  Kxb5 {[%clk 0:00:03]} 52. Be4 {[%clk 0:00:12]}  Kb4 {[%clk 0:00:03]} 53. Ba8 {[%clk 0:00:12]}  Kc3 {[%clk 0:00:03]} 54. Bb7 {[%clk 0:00:13]}  Kd4 {[%clk 0:00:04]} 55. Ba8 {[%clk 0:00:14]}  Ke3 {[%clk 0:00:04]} 56. Bb7 {[%clk 0:00:14]}  Kf4 {[%clk 0:00:05]} 57. Ba8 {[%clk 0:00:14]}  Kg4 {[%clk 0:00:04]} 58. Bb7 {[%clk 0:00:14]}  Bc7 {[%clk 0:00:03]} 59. Bc8+ {[%clk 0:00:13]}  Kh4 {[%clk 0:00:03]} 60. Bb7 {[%clk 0:00:13]}  Bd6 {[%clk 0:00:02]} 61. Ba8 {[%clk 0:00:14]}  Bf4 {[%clk 0:00:02]} 62. Bb7 {[%clk 0:00:14]}  Be3 {[%clk 0:00:02]} 63. Ba8 {[%clk 0:00:15]}  Kg5 {[%clk 0:00:02]} 64. Bc6 {[%clk 0:00:15]}  Kf4 {[%clk 0:00:02]} 65. Bb7 {[%clk 0:00:16]}  Bc5 {[%clk 0:00:01]} 66. Bc6 {[%clk 0:00:17]}  Ke3 {[%clk 0:00:01]} 67. Bb7 {[%clk 0:00:17]}  Kd2 {[%clk 0:00:01]} 68. Bc6 {[%clk 0:00:18]}  Kc3 {[%clk 0:00:02]} 69. Bb7 {[%clk 0:00:18]}  Kb4 {[%clk 0:00:03]} 70. Be4 {[%clk 0:00:19]}  Kb5 {[%clk 0:00:03]} 71. Ba8 {[%clk 0:00:20]}  Kb6 {[%clk 0:00:03]} 72. Bf3 {[%clk 0:00:20]}  Kc7 {[%clk 0:00:03]} 73. Be4 {[%clk 0:00:21]}  Kd6 {[%clk 0:00:04]} 74. Bf3 {[%clk 0:00:21]}  Ke5 {[%clk 0:00:04]} 75. Ba8 {[%clk 0:00:22]}  Kf4 {[%clk 0:00:04]} 76. Bb7 {[%clk 0:00:22]}  Ke5 {[%clk 0:00:03]} 77. Bc6 {[%clk 0:00:23]}  Kf4 {[%clk 0:00:01]} 78. Bb7 {[%clk 0:00:24]} 1/2-1/2


[Site "https://www.chess.com"]

[Event "Titled Tuesday Blitz August 17 2021"]
[White "Abdurakhmonov, Mukhammadali"]
[Black "Taichman, Ori"]
[WhiteFideId "14207346"]
[BlackFideId "2804069"]
[WhiteElo "2749"]
[BlackElo "2642"]
[Result "1-0"]
[Round "09"]
[TimeControl "180+1"]
[Date "2021.08.17"]
[WhiteClock "0:00:45"]
[BlackClock "0:00:22"]

1. e4 {[%clk 0:03:00]}  c5 {[%clk 0:02:57]} 2. Nc3 {[%clk 0:03:00]}  Nc6 {[%clk 0:02:58]} 3. Nge2 {[%clk 0:03:00]}  g6 {[%clk 0:02:58]} 4. d4 {[%clk 0:03:00]}  cxd4 {[%clk 0:02:59]} 5. Nxd4 {[%clk 0:03:01]}  Bg7 {[%clk 0:02:59]} 6. Be3 {[%clk 0:03:02]}  Nf6 {[%clk 0:02:59]} 7. Nxc6 {[%clk 0:03:01]}  bxc6 {[%clk 0:02:59]} 8. e5 {[%clk 0:03:02]}  Ng8 {[%clk 0:03:00]} 9. Bd4 {[%clk 0:03:00]}  f6 {[%clk 0:03:00]} 10. f4 {[%clk 0:03:00]}  Qa5 {[%clk 0:02:57]} 11. Qd2 {[%clk 0:02:59]}  fxe5 {[%clk 0:02:57]} 12. fxe5 {[%clk 0:03:00]}  Bxe5 {[%clk 0:02:49]} 13. Qg5 {[%clk 0:02:59]}  d6 {[%clk 0:02:43]} 14. Bxe5 {[%clk 0:02:59]}  Qxe5+ {[%clk 0:02:42]} 15. Qxe5 {[%clk 0:02:58]}  dxe5 {[%clk 0:02:43]} 16. O-O-O {[%clk 0:02:59]}  Nf6 {[%clk 0:02:43]} 17. Re1 {[%clk 0:02:59]}  Nd7 {[%clk 0:02:38]} 18. Bc4 {[%clk 0:02:48]}  Rf8 {[%clk 0:02:37]} 19. Ne4 {[%clk 0:02:47]}  a5 {[%clk 0:02:34]} 20. Ng5 {[%clk 0:02:42]}  Nb6 {[%clk 0:02:26]} 21. Bd3 {[%clk 0:02:37]}  Bf5 {[%clk 0:02:06]} 22. Nxh7 {[%clk 0:02:26]}  Rh8 {[%clk 0:01:57]} 23. Ng5 {[%clk 0:01:46]}  Bxd3 {[%clk 0:01:55]} 24. cxd3 {[%clk 0:01:47]}  O-O-O {[%clk 0:01:53]} 25. Rxe5 {[%clk 0:01:43]}  Rxd3 {[%clk 0:01:52]} 26. Rxa5 {[%clk 0:01:41]}  Rg3 {[%clk 0:01:49]} 27. Nf7 {[%clk 0:01:33]}  Rh7 {[%clk 0:01:46]} 28. Rg5 {[%clk 0:01:32]}  Rd3 {[%clk 0:01:21]} 29. Ne5 {[%clk 0:01:30]}  Rd5 {[%clk 0:01:21]} 30. Nf3 {[%clk 0:01:27]}  Rxg5 {[%clk 0:01:17]} 31. Nxg5 {[%clk 0:01:28]}  Rh4 {[%clk 0:01:17]} 32. Nf3 {[%clk 0:01:26]}  Rg4 {[%clk 0:01:15]} 33. g3 {[%clk 0:01:26]}  Nd5 {[%clk 0:01:15]} 34. Re1 {[%clk 0:01:26]}  Rb4 {[%clk 0:01:07]} 35. Ne5 {[%clk 0:01:22]}  g5 {[%clk 0:01:05]} 36. Re2 {[%clk 0:01:05]}  Kb7 {[%clk 0:00:59]} 37. a3 {[%clk 0:00:56]}  Rd4 {[%clk 0:00:41]} 38. Ng6 {[%clk 0:00:53]}  g4 {[%clk 0:00:28]} 39. Nxe7 {[%clk 0:00:51]}  Kb6 {[%clk 0:00:27]} 40. Nxd5+ {[%clk 0:00:50]}  cxd5 {[%clk 0:00:27]} 41. Rd2 {[%clk 0:00:46]}  Rc4+ {[%clk 0:00:27]} 42. Kd1 {[%clk 0:00:46]}  Kc5 {[%clk 0:00:27]} 43. Rc2 {[%clk 0:00:47]}  Kd4 {[%clk 0:00:23]} 44. Rxc4+ {[%clk 0:00:46]}  dxc4 {[%clk 0:00:24]} 45. Kc2 {[%clk 0:00:45]}  Ke3 {[%clk 0:00:24]} 46. a4 {[%clk 0:00:41]}  Kf2 {[%clk 0:00:19]} 47. a5 {[%clk 0:00:41]}  Kg2 {[%clk 0:00:20]} 48. a6 {[%clk 0:00:42]}  Kxh2 {[%clk 0:00:20]} 49. a7 {[%clk 0:00:42]}  Kxg3 {[%clk 0:00:21]} 50. a8=Q {[%clk 0:00:43]}  Kh2 {[%clk 0:00:22]} 51. Qh8+ {[%clk 0:00:43]}  Kg2 {[%clk 0:00:22]} 52. Qc3 {[%clk 0:00:44]}  g3 {[%clk 0:00:22]} 53. Qxc4 {[%clk 0:00:44]}  Kh1 {[%clk 0:00:22]} 54. Qh4+ {[%clk 0:00:44]}  Kg2 {[%clk 0:00:22]} 55. b4 {[%clk 0:00:45]}  Kf3 {[%clk 0:00:21]} 56. b5 {[%clk 0:00:45]}  g2 {[%clk 0:00:22]} 57. Qe1 {[%clk 0:00:45]} 1-0


[Site "https://www.chess.com"]

[Event "Titled Tuesday Blitz August 17 2021"]
[White "Alavkin, Arseny"]
[Black "Ayushh, Ravikumar"]
[WhiteFideId "4120612"]
[BlackFideId "35039482"]
[WhiteElo "2391"]
[BlackElo "1441"]
[Result "1/2-1/2"]
[Round "09"]
[TimeControl "180+1"]
[Date "2021.08.18"]
[WhiteClock "0:00:08"]
[BlackClock "0:00:08"]

1. e4 {[%clk 0:02:53]}  e5 {[%clk 0:02:52]} 2. d4 {[%clk 0:02:50]}  exd4 {[%clk 0:02:46]} 3. c3 {[%clk 0:02:50]}  d5 {[%clk 0:02:24]} 4. exd5 {[%clk 0:02:48]}  Qxd5 {[%clk 0:02:24]} 5. cxd4 {[%clk 0:02:48]}  Nf6 {[%clk 0:02:23]} 6. Nc3 {[%clk 0:02:45]}  Qd8 {[%clk 0:02:23]} 7. Nf3 {[%clk 0:02:43]}  Be7 {[%clk 0:02:18]} 8. Bc4 {[%clk 0:02:43]}  O-O {[%clk 0:02:17]} 9. h3 {[%clk 0:02:42]}  c6 {[%clk 0:02:16]} 10. O-O {[%clk 0:02:41]}  Nd5 {[%clk 0:02:15]} 11. Bxd5 {[%clk 0:02:29]}  cxd5 {[%clk 0:02:05]} 12. Qb3 {[%clk 0:02:30]}  Nc6 {[%clk 0:01:39]} 13. Qxd5 {[%clk 0:02:29]}  Qxd5 {[%clk 0:01:33]} 14. Nxd5 {[%clk 0:02:30]}  Rd8 {[%clk 0:01:31]} 15. Nxe7+ {[%clk 0:02:27]}  Nxe7 {[%clk 0:01:32]} 16. Bg5 {[%clk 0:02:23]}  f6 {[%clk 0:01:30]} 17. Bf4 {[%clk 0:02:22]}  Nd5 {[%clk 0:01:30]} 18. Bg3 {[%clk 0:02:21]}  Be6 {[%clk 0:01:29]} 19. Rac1 {[%clk 0:02:21]}  Rac8 {[%clk 0:01:28]} 20. a3 {[%clk 0:02:17]}  Rxc1 {[%clk 0:01:27]} 21. Rxc1 {[%clk 0:02:18]}  Rc8 {[%clk 0:01:28]} 22. Rxc8+ {[%clk 0:02:17]}  Bxc8 {[%clk 0:01:29]} 23. Kf1 {[%clk 0:02:15]}  Kf7 {[%clk 0:01:25]} 24. Ke2 {[%clk 0:02:15]}  Bd7 {[%clk 0:01:22]} 25. Ne1 {[%clk 0:02:05]}  Bb5+ {[%clk 0:01:19]} 26. Kd2 {[%clk 0:02:02]}  Ke6 {[%clk 0:01:17]} 27. Nd3 {[%clk 0:01:56]}  Bxd3 {[%clk 0:00:54]} 28. Kxd3 {[%clk 0:01:55]}  Kd7 {[%clk 0:00:55]} 29. Ke4 {[%clk 0:01:53]}  Ke6 {[%clk 0:00:54]} 30. a4 {[%clk 0:01:51]}  a6 {[%clk 0:00:52]} 31. a5 {[%clk 0:01:46]}  Nb4 {[%clk 0:00:46]} 32. Bc7 {[%clk 0:01:41]}  Nd5 {[%clk 0:00:44]} 33. Bd8 {[%clk 0:01:41]}  f5+ {[%clk 0:00:40]} 34. Kf3 {[%clk 0:01:36]}  g6 {[%clk 0:00:38]} 35. g3 {[%clk 0:01:26]}  Nb4 {[%clk 0:00:34]} 36. Ke2 {[%clk 0:01:15]}  Nd5 {[%clk 0:00:31]} 37. Kd3 {[%clk 0:01:14]}  Kd7 {[%clk 0:00:28]} 38. Kc4 {[%clk 0:01:03]}  Kc6 {[%clk 0:00:20]} 39. Bg5 {[%clk 0:00:42]}  Kd6 {[%clk 0:00:16]} 40. Bf4+ {[%clk 0:00:40]}  Kc6 {[%clk 0:00:16]} 41. Be5 {[%clk 0:00:40]}  Ne7 {[%clk 0:00:15]} 42. g4 {[%clk 0:00:39]}  Nd5 {[%clk 0:00:15]} 43. gxf5 {[%clk 0:00:30]}  gxf5 {[%clk 0:00:16]} 44. Bg3 {[%clk 0:00:26]}  Ne7 {[%clk 0:00:13]} 45. Bh4 {[%clk 0:00:26]}  Nd5 {[%clk 0:00:14]} 46. Bd8 {[%clk 0:00:26]}  Kd6 {[%clk 0:00:14]} 47. b4 {[%clk 0:00:26]}  Kc6 {[%clk 0:00:14]} 48. h4 {[%clk 0:00:25]}  h5 {[%clk 0:00:13]} 49. Bg5 {[%clk 0:00:22]}  Nc7 {[%clk 0:00:10]} 50. Bf6 {[%clk 0:00:18]}  Nd5 {[%clk 0:00:10]} 51. Bd8 {[%clk 0:00:16]}  Nf4 {[%clk 0:00:10]} 52. Be7 {[%clk 0:00:13]}  Nd5 {[%clk 0:00:10]} 53. Bc5 {[%clk 0:00:12]}  Nf4 {[%clk 0:00:09]} 54. d5+ {[%clk 0:00:12]}  Nxd5 {[%clk 0:00:09]} 55. Kd4 {[%clk 0:00:13]}  Nf4 {[%clk 0:00:08]} 56. Ke5 {[%clk 0:00:11]}  Ng6+ {[%clk 0:00:04]} 57. Kxf5 {[%clk 0:00:11]}  Nxh4+ {[%clk 0:00:05]} 58. Kg5 {[%clk 0:00:12]}  Nf3+ {[%clk 0:00:04]} 59. Kxh5 {[%clk 0:00:12]}  Kd5 {[%clk 0:00:04]} 60. Kg4 {[%clk 0:00:12]}  Ke4 {[%clk 0:00:05]} 61. Kg3 {[%clk 0:00:10]}  Nd2 {[%clk 0:00:05]} 62. Kg4 {[%clk 0:00:10]}  Nf3 {[%clk 0:00:06]} 63. Kh5 {[%clk 0:00:09]}  Ne5 {[%clk 0:00:06]} 64. Kg5 {[%clk 0:00:09]}  Nf3+ {[%clk 0:00:05]} 65. Kf6 {[%clk 0:00:09]}  Kd5 {[%clk 0:00:05]} 66. Ke7 {[%clk 0:00:09]}  Ne5 {[%clk 0:00:03]} 67. f4 {[%clk 0:00:07]}  Ng6+ {[%clk 0:00:03]} 68. Kd7 {[%clk 0:00:06]}  Nxf4 {[%clk 0:00:04]} 69. Kc7 {[%clk 0:00:07]}  Nd3 {[%clk 0:00:03]} 70. Kxb7 {[%clk 0:00:05]}  Nxc5+ {[%clk 0:00:02]} 71. bxc5 {[%clk 0:00:05]}  Kxc5 {[%clk 0:00:03]} 72. Kxa6 {[%clk 0:00:05]}  Kc6 {[%clk 0:00:04]} 73. Ka7 {[%clk 0:00:05]}  Kc7 {[%clk 0:00:05]} 74. a6 {[%clk 0:00:05]}  Kc8 {[%clk 0:00:06]} 75. Kb6 {[%clk 0:00:06]}  Kb8 {[%clk 0:00:07]} 76. a7+ {[%clk 0:00:07]}  Ka8 {[%clk 0:00:08]} 77. Ka6 {[%clk 0:00:08]} 1/2-1/2


[Site "https://www.chess.com"]

[Event "Titled Tuesday Blitz August 17 2021"]
[White "Aldokhin, Ivan"]
[Black "Richter, Nils"]
[WhiteFideId "24115720"]
[BlackFideId "12990809"]
[WhiteElo "2306"]
[BlackElo "2289"]
[Result "1-0"]
[Round "09"]
[TimeControl "180+1"]
[Date "2021.08.17"]
[WhiteClock "0:00:02"]
[BlackClock "0:00:07"]

1. e4 {[%clk 0:03:00]}  c5 {[%clk 0:02:57]} 2. Nf3 {[%clk 0:03:01]}  d6 {[%clk 0:02:57]} 3. d4 {[%clk 0:03:01]}  cxd4 {[%clk 0:02:58]} 4. Nxd4 {[%clk 0:03:02]}  Nf6 {[%clk 0:02:58]} 5. Nc3 {[%clk 0:03:02]}  a6 {[%clk 0:02:58]} 6. Bc4 {[%clk 0:03:02]}  e6 {[%clk 0:02:58]} 7. Bb3 {[%clk 0:03:03]}  Be7 {[%clk 0:02:58]} 8. Be3 {[%clk 0:03:03]}  b5 {[%clk 0:02:53]} 9. f3 {[%clk 0:02:57]}  Bd7 {[%clk 0:02:52]} 10. Qe2 {[%clk 0:02:57]}  Nc6 {[%clk 0:02:52]} 11. O-O-O {[%clk 0:02:56]}  Nxd4 {[%clk 0:02:52]} 12. Bxd4 {[%clk 0:02:49]}  O-O {[%clk 0:02:44]} 13. g4 {[%clk 0:02:48]}  b4 {[%clk 0:02:40]} 14. Na4 {[%clk 0:02:48]}  Rb8 {[%clk 0:02:34]} 15. Qf2 {[%clk 0:02:16]}  Bb5 {[%clk 0:02:09]} 16. e5 {[%clk 0:02:05]}  Nd7 {[%clk 0:01:58]} 17. exd6 {[%clk 0:02:02]}  Bxd6 {[%clk 0:01:59]} 18. Kb1 {[%clk 0:01:57]}  Bf4 {[%clk 0:01:53]} 19. Nc5 {[%clk 0:01:42]}  Qc7 {[%clk 0:01:40]} 20. Nxd7 {[%clk 0:01:28]}  Bxd7 {[%clk 0:01:41]} 21. Ba7 {[%clk 0:01:18]}  Rb7 {[%clk 0:01:36]} 22. Be3 {[%clk 0:00:57]}  Bxe3 {[%clk 0:01:31]} 23. Qxe3 {[%clk 0:00:57]}  a5 {[%clk 0:01:32]} 24. Rd4 {[%clk 0:00:53]}  a4 {[%clk 0:01:21]} 25. Bc4 {[%clk 0:00:53]}  e5 {[%clk 0:01:18]} 26. Re4 {[%clk 0:00:46]}  b3 {[%clk 0:01:11]} 27. cxb3 {[%clk 0:00:36]}  axb3 {[%clk 0:01:05]} 28. Bxb3 {[%clk 0:00:36]}  Bc6 {[%clk 0:01:02]} 29. Rc4 {[%clk 0:00:29]}  Qd6 {[%clk 0:00:34]} 30. Rd1 {[%clk 0:00:24]}  Qf6 {[%clk 0:00:33]} 31. Rc3 {[%clk 0:00:14]}  Rfb8 {[%clk 0:00:25]} 32. Rdc1 {[%clk 0:00:13]}  Be8 {[%clk 0:00:22]} 33. Rc7 {[%clk 0:00:11]}  g6 {[%clk 0:00:22]} 34. Rxb7 {[%clk 0:00:10]}  Rxb7 {[%clk 0:00:22]} 35. Rc8 {[%clk 0:00:10]}  Qe7 {[%clk 0:00:20]} 36. Ba4 {[%clk 0:00:07]}  Rxb2+ {[%clk 0:00:10]} 37. Kxb2 {[%clk 0:00:05]}  Qb4+ {[%clk 0:00:10]} 38. Bb3 {[%clk 0:00:04]}  Kf8 {[%clk 0:00:07]} 39. Qxe5 {[%clk 0:00:04]}  Qd2+ {[%clk 0:00:06]} 40. Ka3 {[%clk 0:00:03]}  Qc1+ {[%clk 0:00:05]} 41. Rxc1 {[%clk 0:00:02]}  f6 {[%clk 0:00:06]} 42. Qxf6+ {[%clk 0:00:02]}  Bf7 {[%clk 0:00:07]} 43. Rc8# {[%clk 0:00:02]} 1-0


[Site "https://www.chess.com"]